[Event "DVM U12W 2021"]
[Site "Willingen"]
[Date "2022.08.14"]
[Round "3"]
[White "Limmer, Maria"]
[Black "Engeln, Helene"]
[Result "0-1"]
[ECO "C45"]
[WhiteElo "767"]
[BlackElo "956"]
[Annotator "NA RC"]
[PlyCount "52"]
[EventDate "2022.08.12"]
[EventType "team-tourn"]
[EventRounds "7"]
[EventCountry "GER"]
[SourceTitle "playchess.com"]
[Source "ChessBase"]
[SourceQuality "1"]
[TimeControl "40/5400+30:1800+30"]

1. e4 {[%emt 0:00:04]} e5 2. Nf3 Nc6 3. d4 exd4 {[%emt 0:00:02]} 4. Nxd4 {[%emt 0:00:01]} Nf6 {[%emt 0:00:02]} 5. Nxc6 {[%emt 0:00:04]} dxc6 6. Qxd8+ {[%emt 0:00:02]} Kxd8 {[%emt 0:00:03]} 7. Bd3 {[%emt 0:00:04]} Bc5 {[%emt 0:00:07]} 8. O-O {[%emt 0:01:52]} Re8 {[%emt 0:05:12]} 9. Bg5 {[%emt 0:00:31]} h6 {[%emt 0:00:19]} 10. Bxf6+ {[%emt 0:00:16]} gxf6 {[%emt 0:00:12]} 11. Nc3 {[%emt 0:01:03]} Rg8 {[%emt 0:00:32]} 12. Ne2 {[%emt 0:01:25]} Bd6 {[%emt 0:00:42]} 13. Rad1 {[%emt 0:00:49]} Bh3 {[%emt 0:00:15]} 14. Bc4 {[%emt 0:00:57]} Rxg2+ {[%emt 0:00:12]} 15. Kh1 {[%emt 0:00:24]} Rxh2+ {[%emt 0:00:38]} 16. Kg1 {[%emt 0:02:20]} Bxf1 {[%emt 0:00:35]} 17. Kxf1 {[%emt 0:00:30]} Ke7 {[%emt 0:00:21]} 18. Ng3 {[%emt 0:02:13]} Rg8 {[%emt 0:01:22]} 19. Nf5+ {[%emt 0:00:48]} Kf8 {[%emt 0:01:51]} 20. Nxd6 {[%emt 0:00:46]} cxd6 {[%emt 0:00:08]} 21. Rxd6 {[%emt 0:01:25]} Rh1+ {[%emt 0:01:21]} 22. Ke2 {[%emt 0:00:22]} Rg4 {[%emt 0:00:31]} 23. Rd8+ {[%emt 0:00:24]} Ke7 {[%emt 0:00:24]} 24. Rd3 {[%emt 0:01:09]} f5 {[%emt 0:01:36]} 25. Re3 {[%emt 0:00:29]} fxe4 {[%emt 0:00:27]} 26. f3 {[%emt 0:00:49]} Rg2# {[%emt 0:00:07]} 0-1

[Event "DVM U12W 2021"]
[Site "Willingen"]
[Date "2022.08.14"]
[Round "3"]
[White "Marrufo, Leandra"]
[Black "Blome, Antonia"]
[Result "0-1"]
[ECO "C50"]
[WhiteElo "701"]
[BlackElo "823"]
[Annotator "NA RC"]
[PlyCount "46"]
[EventDate "2022.08.12"]
[EventType "team-tourn"]
[EventRounds "7"]
[EventCountry "GER"]
[SourceTitle "playchess.com"]
[Source "ChessBase"]
[SourceQuality "1"]
[TimeControl "40/5400+30:1800+30"]

1. e4 {[%emt 0:00:04]} e5 {[%emt 0:00:00]} 2. Nf3 {[%emt 0:00:06]} Nc6 {[%emt 0:00:00]} 3. Bc4 {[%emt 0:00:05]} Bc5 {[%emt 0:00:00]} 4. d3 {[%emt 0:00:14]} Nf6 {[%emt 0:00:24]} 5. Nc3 {[%emt 0:00:08]} d6 {[%emt 0:00:30]} 6. h3 {[%emt 0:00:07]} Be6 {[%emt 0:00:15]} 7. Bb3 {[%emt 0:00:24]} h6 {[%emt 0:00:23]} 8. Be3 {[%emt 0:00:08]} Bb6 {[%emt 0:00:16]} 9. Qe2 {[%emt 0:01:19]} Nd4 {[%emt 0:02:32]} 10. Bxd4 {[%emt 0:00:28]} exd4 {[%emt 0:04:27]} 11. Nd1 {[%emt 0:01:03]} d5 {[%emt 0:01:18]} 12. exd5 {[%emt 0:00:07]} Nxd5 {[%emt 0:00:47]} 13. Bxd5 {[%emt 0:00:04]} Qxd5 {[%emt 0:06:47]} 14. c3 {[%emt 0:01:13]} O-O {[%emt 0:03:11]} 15. Qc2 {[%emt 0:01:14]} Rfe8 {[%emt 0:01:33]} 16. O-O {[%emt 0:00:52]} Rad8 {[%emt 0:07:44]} 17. c4 {[%emt 0:00:31]} Qf5 {[%emt 0:03:28]} 18. Re1 {[%emt 0:00:54]} Bd7 {[%emt 0:01:43]} 19. Rxe8+ {[%emt 0:00:07]} Rxe8 {[%emt 0:02:39]} 20. Nh4 {[%emt 0:03:20]} Re1+ {[%emt 0:01:59]} 21. Kh2 {[%emt 0:01:15]} Qe5+ {[%emt 0:00:30]} 22. g3 {[%emt 0:01:47]} Bc6 {[%emt 0:10:09]} 23. b4 Rh1# {[%emt 0:11:14]} 0-1

[Event "DVM U12W 2021"]
[Site "Willingen"]
[Date "2022.08.14"]
[Round "4"]
[White "Müller, Cosima"]
[Black "Mehner, Clara"]
[Result "1-0"]
[ECO "C11"]
[WhiteElo "1355"]
[BlackElo "1150"]
[Annotator "NA RC"]
[PlyCount "93"]
[EventDate "2022.08.12"]
[EventType "team-tourn"]
[EventRounds "7"]
[EventCountry "GER"]
[SourceTitle "playchess.com"]
[Source "ChessBase"]
[SourceQuality "1"]
[TimeControl "40/5400+30:1800+30"]

1. e4 {[%emt 0:00:04]} e6 {[%emt 0:00:04]} 2. d4 {[%emt 0:00:04]} d5 {[%emt 0:00:07]} 3. Nc3 {[%emt 0:00:05]} Nf6 {[%emt 0:00:09]} 4. e5 {[%emt 0:00:06]} Nfd7 {[%emt 0:00:11]} 5. Nce2 {[%emt 0:00:09]} c5 {[%emt 0:00:27]} 6. c3 {[%emt 0:00:06]} Nc6 {[%emt 0:00:21]} 7. f4 {[%emt 0:00:06]} Be7 {[%emt 0:00:48]} 8. Nf3 {[%emt 0:00:27]} O-O {[%emt 0:00:38]} 9. a3 {[%emt 0:01:08]} c4 {[%emt 0:07:02]} 10. Ng3 {[%emt 0:08:55]} Qb6 {[%emt 0:04:23]} 11. Nd2 {[%emt 0:04:33]} f5 {[%emt 0:03:54]} 12. h4 {[%emt 0:04:53]} Qd8 {[%emt 0:06:34]} 13. Nf3 {[%emt 0:01:32]} Nb6 {[%emt 0:02:05]} 14. Nh5 {[%emt 0:04:44]} Qe8 {[%emt 0:03:01]} 15. Ng3 {[%emt 0:03:06]} Qg6 {[%emt 0:02:17]} 16. Rh3 {[%emt 0:01:36]} Qg4 {[%emt 0:03:58]} 17. Be2 {[%emt 0:00:55]} h6 {[%emt 0:03:03]} 18. Ng5 {[%emt 0:00:54]} Qxh3 {[%emt 0:02:12]} 19. Nxh3 {[%emt 0:00:13]} Bxh4 {[%emt 0:00:21]} 20. Bh5 {[%emt 0:02:00]} Bxg3+ {[%emt 0:01:33]} 21. Kf1 {[%emt 0:00:22]} Bd7 {[%emt 0:01:55]} 22. Bg6 {[%emt 0:01:34]} Ne7 {[%emt 0:03:16]} 23. Qh5 {[%emt 0:00:44]} Nxg6 {[%emt 0:02:08]} 24. Qxg6 {[%emt 0:00:13]} Bh4 {[%emt 0:00:48]} 25. Bd2 {[%emt 0:00:53]} Na4 {[%emt 0:03:13]} 26. Rb1 {[%emt 0:01:26]} b5 {[%emt 0:02:49]} 27. g4 {[%emt 0:03:41]} fxg4 {[%emt 0:11:05]} 28. Qxg4 {[%emt 0:00:08]} Be7 {[%emt 0:01:32]} 29. Ke2 {[%emt 0:01:19]} Rf5 {[%emt 0:01:55]} 30. Rg1 {[%emt 0:01:11]} Bf8 {[%emt 0:02:36]} 31. Qg6 {[%emt 0:01:31]} Nxb2 {[%emt 0:04:33]} 32. Qxh6 {[%emt 0:01:00]} Nd3 {[%emt 0:03:36]} 33. Qg6 {[%emt 0:00:23]} Be8 {[%emt 0:07:14]} 34. Qxe6+ {[%emt 0:00:25]} Rf7 {[%emt 0:00:15]} 35. Ng5 {[%emt 0:00:53]} Rd8 {[%emt 0:05:18]} 36. Qg6 {[%emt 0:00:46]} Bxa3 {[%emt 0:03:32]} 37. Nxf7 {[%emt 0:00:27]} Bf8 {[%emt 0:01:01]} 38. Qg5 {[%emt 0:01:16]} Rd7 {[%emt 0:02:12]} 39. Nd6 {[%emt 0:00:20]} a6 {[%emt 0:01:09]} 40. Nxe8 {[%emt 0:00:52]} Rf7 {[%emt 0:00:56]} 41. Nf6+ {[%emt 0:30:16]} Rxf6 {[%emt 0:30:43]} 42. exf6 {[%emt 0:00:09]} Kf7 {[%emt 0:01:36]} 43. fxg7 {[%emt 0:00:50]} Bxg7 {[%emt 0:01:21]} 44. Qxg7+ {[%emt 0:00:05]} Ke8 {[%emt 0:01:21]} 45. Qh7 {[%emt 0:00:15]} Nxf4+ {[%emt 0:00:14]} 46. Bxf4 {[%emt 0:00:05]} Kf8 {[%emt 0:00:20]} 47. Rg8# {[%emt 0:00:06]} 1-0

[Event "DVM U12W 2021"]
[Site "Willingen"]
[Date "2022.08.14"]
[Round "4"]
[White "Ramakrishnan, Veda"]
[Black "Kopylov, Diana"]
[Result "0-1"]
[ECO "B22"]
[WhiteElo "1333"]
[BlackElo "1108"]
[Annotator "NA RC"]
[PlyCount "62"]
[EventDate "2022.08.12"]
[EventType "team-tourn"]
[EventRounds "7"]
[EventCountry "GER"]
[SourceTitle "playchess.com"]
[Source "ChessBase"]
[SourceQuality "1"]
[TimeControl "40/5400+30:1800+30"]

1. e4 {[%emt 0:00:01]} c5 {[%emt 0:00:05]} 2. c3 {[%emt 0:00:08]} d6 {[%emt 0:01:34]} 3. d4 {[%emt 0:01:42]} cxd4 {[%emt 0:00:40]} 4. cxd4 {[%emt 0:00:24]} Nf6 {[%emt 0:00:43]} 5. Nc3 {[%emt 0:00:39]} g6 {[%emt 0:01:11]} 6. Bc4 {[%emt 0:01:02]} Bg7 {[%emt 0:01:15]} 7. Nf3 {[%emt 0:00:39]} O-O {[%emt 0:00:52]} 8. O-O {[%emt 0:00:41]} Nc6 {[%emt 0:05:57]} 9. Be3 {[%emt 0:00:28]} Bd7 {[%emt 0:03:41]} 10. Qd2 {[%emt 0:00:32]} a6 {[%emt 0:01:07]} 11. Bh6 {[%emt 0:01:25]} Rc8 {[%emt 0:01:02]} 12. Bxg7 {[%emt 0:01:37]} Kxg7 {[%emt 0:00:13]} 13. Bd3 {[%emt 0:00:33]} b5 {[%emt 0:03:40]} 14. Rac1 {[%emt 0:00:55]} Qb6 {[%emt 0:02:08]} 15. Bc2 {[%emt 0:03:06]} Rfd8 {[%emt 0:06:18]} 16. Rfe1 {[%emt 0:02:19]} Bg4 {[%emt 0:07:34]} 17. d5 {[%emt 0:01:46]} Bxf3 {[%emt 0:07:13]} 18. gxf3 {[%emt 0:01:41]} Ne5 {[%emt 0:02:39]} 19. Qe2 {[%emt 0:03:48]} Nh5 {[%emt 0:11:47]} 20. a4 {[%emt 0:08:04]} b4 {[%emt 0:02:35]} 21. Nb1 {[%emt 0:01:41]} Nf4 {[%emt 0:00:52]} 22. Qe3 {[%emt 0:04:07]} Qxe3 {[%emt 0:01:53]} 23. Rxe3 {[%emt 0:00:31]} Ned3 {[%emt 0:02:31]} 24. Rd1 {[%emt 0:04:19]} Rxc2 {[%emt 0:01:22]} 25. b3 {[%emt 0:00:31]} Nxf2 {[%emt 0:02:04]} 26. Rd2 {[%emt 0:04:50]} N2h3+ {[%emt 0:03:25]} 27. Kf1 {[%emt 0:00:37]} Rdc8 {[%emt 0:01:11]} 28. Re1 {[%emt 0:08:05]} Rc1 {[%emt 0:08:17]} 29. Rdd1 {[%emt 0:00:58]} Rxd1 {[%emt 0:01:36]} 30. Rxd1 {[%emt 0:00:08]} Rc2 {[%emt 0:00:27]} 31. Re1 {[%emt 0:01:45]} Rf2# {[%emt 0:03:22]} 0-1

[Event "DVM U12W 2021"]
[Site "Willingen"]
[Date "2022.08.14"]
[Round "4"]
[White "Schuelke, Rosalie"]
[Black "Abram, Kristina-Maria"]
[Result "1-0"]
[ECO "B01"]
[WhiteElo "1297"]
[BlackElo "1128"]
[Annotator "NA RC"]
[PlyCount "43"]
[EventDate "2022.08.12"]
[EventType "team-tourn"]
[EventRounds "7"]
[EventCountry "GER"]
[SourceTitle "playchess.com"]
[Source "ChessBase"]
[SourceQuality "1"]
[TimeControl "40/5400+30:1800+30"]

1. e4 {[%emt 0:00:02]} d5 {[%emt 0:00:04]} 2. exd5 {[%emt 0:00:09]} Qxd5 {[%emt 0:00:06]} 3. Nc3 {[%emt 0:00:08]} Qa5 {[%emt 0:00:05]} 4. d4 {[%emt 0:00:21]} c6 {[%emt 0:00:16]} 5. Bc4 {[%emt 0:00:39]} Nf6 {[%emt 0:00:16]} 6. Nge2 {[%emt 0:00:50]} Bf5 {[%emt 0:00:28]} 7. Bd2 {[%emt 0:00:38]} Qc7 {[%emt 0:00:18]} 8. Ng3 {[%emt 0:02:13]} Bg6 {[%emt 0:00:41]} 9. f4 {[%emt 0:01:10]} e6 {[%emt 0:01:32]} 10. O-O {[%emt 0:00:48]} Bd6 {[%emt 0:01:08]} 11. Qf3 {[%emt 0:02:01]} Nbd7 {[%emt 0:01:05]} 12. Rae1 {[%emt 0:13:46]} O-O-O {[%emt 0:00:30]} 13. Nce4 {[%emt 0:03:12]} Nxe4 {[%emt 0:00:39]} 14. Nxe4 {[%emt 0:00:14]} Nf6 {[%emt 0:01:07]} 15. Nxd6+ {[%emt 0:02:26]} Qxd6 {[%emt 0:00:33]} 16. Qb3 {[%emt 0:08:03]} Nd5 {[%emt 0:04:46]} 17. Bxd5 {[%emt 0:09:32]} exd5 {[%emt 0:00:15]} 18. f5 {[%emt 0:00:59]} Bh5 {[%emt 0:01:08]} 19. Qh3 {[%emt 0:02:03]} Bg6 {[%emt 0:01:18]} 20. fxg6+ {[%emt 0:00:12]} Rd7 {[%emt 0:01:17]} 21. gxf7 {[%emt 0:00:00]} h6 {[%emt 0:03:36]} 22. Re8+ {[%emt 0:00:46]} 1-0

[Event "DVM U12W 2021"]
[Site "Willingen"]
[Date "2022.08.14"]
[Round "4"]
[White "Mo, Keyou"]
[Black "Glotz, Diana"]
[Result "1/2-1/2"]
[ECO "C50"]
[WhiteElo "1264"]
[BlackElo "1116"]
[Annotator "NA RC"]
[PlyCount "53"]
[EventDate "2022.08.12"]
[EventType "team-tourn"]
[EventRounds "7"]
[EventCountry "GER"]
[SourceTitle "playchess.com"]
[Source "ChessBase"]
[SourceQuality "1"]
[TimeControl "40/5400+30:1800+30"]

1. e4 {[%emt 0:00:04]} e5 {[%emt 0:00:00]} 2. Nf3 {[%emt 0:00:06]} Nc6 {[%emt 0:00:00]} 3. Bc4 {[%emt 0:00:06]} Bc5 {[%emt 0:00:04]} 4. Nc3 {[%emt 0:00:17]} Nf6 {[%emt 0:00:09]} 5. d3 {[%emt 0:00:10]} h6 {[%emt 0:00:14]} 6. Be3 {[%emt 0:00:09]} Bb6 {[%emt 0:00:18]} 7. Qd2 {[%emt 0:00:19]} d6 {[%emt 0:00:15]} 8. h3 {[%emt 0:00:24]} Be6 {[%emt 0:00:53]} 9. Bb3 {[%emt 0:04:46]} a6 {[%emt 0:02:52]} 10. O-O {[%emt 0:03:57]} Qd7 {[%emt 0:01:50]} 11. Rfe1 {[%emt 0:02:24]} O-O {[%emt 0:03:37]} 12. d4 {[%emt 0:03:44]} exd4 {[%emt 0:00:48]} 13. Nxd4 {[%emt 0:01:48]} Bxd4 {[%emt 0:00:17]} 14. Bxd4 {[%emt 0:00:39]} Nxd4 {[%emt 0:00:16]} 15. Qxd4 {[%emt 0:01:03]} Bxb3 {[%emt 0:00:13]} 16. axb3 {[%emt 0:03:37]} Rfe8 {[%emt 0:05:23]} 17. Rad1 {[%emt 0:05:33]} Rad8 {[%emt 0:03:13]} 18. Nd5 {[%emt 0:01:41]} Nxd5 {[%emt 0:00:23]} 19. Qxd5 {[%emt 0:07:12]} Qb5 {[%emt 0:03:52]} 20. Qd2 {[%emt 0:05:21]} Re7 {[%emt 0:03:09]} 21. Re3 {[%emt 0:02:06]} Rde8 {[%emt 0:02:37]} 22. Rde1 {[%emt 0:08:39]} f5 {[%emt 0:10:45]} 23. exf5 {[%emt 0:00:16]} Rxe3 {[%emt 0:00:11]} 24. Rxe3 {[%emt 0:00:06]} Rxe3 {[%emt 0:00:06]} 25. Qxe3 {[%emt 0:00:10]} Qxf5 {[%emt 0:00:38]} 26. Qc3 {[%emt 0:06:37]} c5 {[%emt 0:02:33]} 27. Qd2 1/2-1/2

[Event "DVM U12W 2021"]
[Site "Willingen"]
[Date "2022.08.14"]
[Round "4"]
[White "Eger, Nora"]
[Black "Fruth, Julia"]
[Result "0-1"]
[ECO "B10"]
[WhiteElo "1248"]
[BlackElo "1037"]
[Annotator "NA RC"]
[PlyCount "78"]
[EventDate "2022.08.12"]
[EventType "team-tourn"]
[EventRounds "7"]
[EventCountry "GER"]
[SourceTitle "playchess.com"]
[Source "ChessBase"]
[SourceQuality "1"]
[TimeControl "40/5400+30:1800+30"]

1. Nf3 {[%emt 0:00:04]} Nf6 {[%emt 0:00:07]} 2. g3 {[%emt 0:00:05]} d5 {[%emt 0:00:11]} 3. Bg2 {[%emt 0:00:27]} c6 {[%emt 0:00:04]} 4. d3 {[%emt 0:00:47]} Bg4 {[%emt 0:00:20]} 5. O-O {[%emt 0:01:01]} Nbd7 {[%emt 0:00:19]} 6. Nbd2 {[%emt 0:00:50]} e5 {[%emt 0:00:11]} 7. e4 {[%emt 0:01:34]} Bd6 {[%emt 0:00:13]} 8. Qe1 {[%emt 0:02:40]} O-O {[%emt 0:01:22]} 9. c3 {[%emt 0:04:21]} Re8 {[%emt 0:03:17]} 10. Nb3 {[%emt 0:04:52]} h6 {[%emt 0:01:48]} 11. Nh4 {[%emt 0:05:39]} Qe7 {[%emt 0:07:15]} 12. Nf5 {[%emt 0:05:47]} Qe6 {[%emt 0:00:09]} 13. Nxd6 {[%emt 0:00:37]} Qxd6 {[%emt 0:00:08]} 14. Nd2 {[%emt 0:01:27]} Qe6 {[%emt 0:00:52]} 15. Nf3 {[%emt 0:02:23]} Bh3 {[%emt 0:00:19]} 16. Bd2 {[%emt 0:02:37]} Nc5 {[%emt 0:07:35]} 17. exd5 {[%emt 0:04:34]} cxd5 {[%emt 0:01:19]} 18. Qe3 {[%emt 0:05:29]} Bxg2 {[%emt 0:01:07]} 19. Kxg2 {[%emt 0:01:20]} e4 {[%emt 0:03:37]} 20. dxe4 {[%emt 0:02:26]} dxe4 {[%emt 0:01:01]} 21. Nd4 {[%emt 0:02:46]} Qd5 {[%emt 0:04:58]} 22. Kg1 {[%emt 0:10:25]} Qh5 {[%emt 0:02:32]} 23. f3 {[%emt 0:10:02]} Qh3 {[%emt 0:05:27]} 24. Rf2 {[%emt 0:02:44]} Nd3 {[%emt 0:05:52]} 25. Rg2 {[%emt 0:01:47]} Nd5 {[%emt 0:02:52]} 26. Qe2 {[%emt 0:03:03]} Nc5 {[%emt 0:07:25]} 27. b4 {[%emt 0:05:29]} e3 {[%emt 0:03:12]} 28. bxc5 {[%emt 0:02:36]} exd2 {[%emt 0:00:08]} 29. Qxd2 {[%emt 0:00:28]} Re7 {[%emt 0:04:16]} 30. Re1 {[%emt 0:02:32]} Rae8 {[%emt 0:01:14]} 31. Rxe7 {[%emt 0:00:21]} Rxe7 {[%emt 0:00:11]} 32. Nb5 {[%emt 0:01:59]} Ne3 {[%emt 0:02:11]} 33. Rf2 {[%emt 0:03:05]} Kh7 {[%emt 0:01:07]} 34. Nxa7 {[%emt 0:03:15]} Re5 {[%emt 0:02:42]} 35. c4 {[%emt 0:02:38]} g6 {[%emt 0:02:41]} 36. Qd4 {[%emt 0:01:16]} Re8 {[%emt 0:01:09]} 37. Qd7 {[%emt 0:01:01]} Qxd7 {[%emt 0:00:10]} 38. Nb5 {[%emt 0:01:44]} Qd1+ {[%emt 0:00:44]} 39. Rf1 {[%emt 0:00:04]} Qxf1# {[%emt 0:00:14]} 0-1

[Event "DVM U12W 2021"]
[Site "Willingen"]
[Date "2022.08.14"]
[Round "4"]
[White "Prokscha, Charlotte"]
[Black "Gerlach, Lorena"]
[Result "1-0"]
[ECO "D32"]
[WhiteElo "1241"]
[BlackElo "1120"]
[Annotator "NA RC"]
[PlyCount "39"]
[EventDate "2022.08.12"]
[EventType "team-tourn"]
[EventRounds "7"]
[EventCountry "GER"]
[SourceTitle "playchess.com"]
[Source "ChessBase"]
[SourceQuality "1"]
[TimeControl "40/5400+30:1800+30"]

1. d4 {[%emt 0:00:02]} e6 {[%emt 0:00:08]} 2. c4 {[%emt 0:00:09]} d5 {[%emt 0:00:06]} 3. Nc3 {[%emt 0:00:10]} c5 {[%emt 0:00:22]} 4. dxc5 {[%emt 0:00:24]} Bxc5 {[%emt 0:00:10]} 5. cxd5 {[%emt 0:00:15]} Qf6 {[%emt 0:01:50]} 6. Nf3 {[%emt 0:02:07]} Bb4 {[%emt 0:01:33]} 7. Qa4+ {[%emt 0:01:06]} Bd7 {[%emt 0:00:58]} 8. Qxb4 {[%emt 0:00:21]} Ne7 {[%emt 0:02:21]} 9. Bg5 {[%emt 0:00:28]} Nxd5 {[%emt 0:03:44]} 10. Nxd5 {[%emt 0:00:13]} Nc6 {[%emt 0:00:29]} 11. Nxf6+ {[%emt 0:00:34]} gxf6 {[%emt 0:00:08]} 12. Qxb7 {[%emt 0:00:14]} O-O {[%emt 0:00:49]} 13. Bxf6 {[%emt 0:00:44]} Rac8 {[%emt 0:01:18]} 14. Qxd7 {[%emt 0:00:44]} Nb4 {[%emt 0:01:10]} 15. Nd4 {[%emt 0:00:54]} Nd5 {[%emt 0:00:27]} 16. Bh4 {[%emt 0:03:21]} Rc7 {[%emt 0:03:24]} 17. Qd6 {[%emt 0:00:55]} Rfc8 {[%emt 0:00:30]} 18. Qg3+ {[%emt 0:01:35]} Kh8 {[%emt 0:01:20]} 19. e4 {[%emt 0:03:39]} Nb4 {[%emt 0:01:02]} 20. Bf6# {[%emt 0:00:10]} 1-0

[Event "DVM U12W 2021"]
[Site "Willingen"]
[Date "2022.08.14"]
[Round "4"]
[White "Hefele, Stefanie"]
[Black "Marrufo, Emilia"]
[Result "1-0"]
[ECO "C47"]
[WhiteElo "1180"]
[BlackElo "970"]
[Annotator "NA RC"]
[PlyCount "93"]
[EventDate "2022.08.12"]
[EventType "team-tourn"]
[EventRounds "7"]
[EventCountry "GER"]
[SourceTitle "playchess.com"]
[Source "ChessBase"]
[SourceQuality "1"]
[TimeControl "40/5400+30:1800+30"]

1. e4 {[%emt 0:00:19]} e5 {[%emt 0:00:00]} 2. Nf3 {[%emt 0:00:24]} Nc6 {[%emt 0:00:00]} 3. Nc3 {[%emt 0:01:06]} Nf6 {[%emt 0:00:09]} 4. d4 {[%emt 0:01:07]} exd4 {[%emt 0:00:09]} 5. Nxd4 {[%emt 0:01:16]} Bc5 {[%emt 0:00:38]} 6. Be3 {[%emt 0:04:36]} Bb6 {[%emt 0:02:11]} 7. Bc4 {[%emt 0:03:44]} a6 {[%emt 0:01:19]} 8. O-O {[%emt 0:01:08]} d6 {[%emt 0:01:08]} 9. h3 {[%emt 0:03:18]} O-O {[%emt 0:03:13]} 10. Nxc6 {[%emt 0:00:28]} bxc6 {[%emt 0:00:30]} 11. Bg5 {[%emt 0:02:07]} h6 {[%emt 0:00:32]} 12. Bh4 {[%emt 0:04:39]} Rb8 {[%emt 0:01:56]} 13. Qf3 {[%emt 0:02:10]} Bd4 {[%emt 0:01:57]} 14. Rab1 {[%emt 0:04:56]} Be6 {[%emt 0:03:17]} 15. Bb3 {[%emt 0:02:49]} Qe8 {[%emt 0:02:10]} 16. Bxf6 {[%emt 0:00:21]} Bxf6 {[%emt 0:02:58]} 17. Qd3 {[%emt 0:04:45]} Qe7 {[%emt 0:02:27]} 18. Qxa6 {[%emt 0:02:47]} Bd7 {[%emt 0:01:29]} 19. Rfe1 {[%emt 0:02:12]} Be5 {[%emt 0:04:34]} 20. Qa5 {[%emt 0:01:39]} Rbc8 {[%emt 0:05:17]} 21. Ba4 {[%emt 0:01:21]} Qg5 {[%emt 0:06:31]} 22. Kf1 {[%emt 0:01:28]} Qf4 {[%emt 0:07:11]} 23. Rbd1 {[%emt 0:04:10]} Qh2 {[%emt 0:00:54]} 24. Ke2 {[%emt 0:00:34]} Qxg2 {[%emt 0:01:45]} 25. Rg1 {[%emt 0:00:24]} Qxh3 {[%emt 0:01:03]} 26. Rd3 {[%emt 0:00:53]} Bg4+ {[%emt 0:00:49]} 27. Ke1 {[%emt 0:02:36]} Qh4 {[%emt 0:03:22]} 28. Bxc6 {[%emt 0:04:04]} Rb8 {[%emt 0:01:30]} 29. b3 {[%emt 0:00:56]} Rbc8 {[%emt 0:01:51]} 30. Nd5 {[%emt 0:02:29]} Rcd8 {[%emt 0:01:18]} 31. Qxc7 {[%emt 0:01:13]} Rc8 {[%emt 0:00:42]} 32. Ne7+ {[%emt 0:00:37]} Kh8 {[%emt 0:00:22]} 33. Nxc8 {[%emt 0:00:07]} Rxc8 {[%emt 0:00:43]} 34. Qb7 {[%emt 0:02:12]} Rf8 {[%emt 0:03:07]} 35. Bd5 {[%emt 0:00:53]} Qh5 {[%emt 0:01:23]} 36. Qe7 {[%emt 0:00:46]} Kg8 {[%emt 0:03:22]} 37. a4 {[%emt 0:01:37]} Be2 {[%emt 0:01:01]} 38. Re3 {[%emt 0:00:55]} Bd1 {[%emt 0:04:23]} 39. c4 {[%emt 0:00:56]} Bf4 {[%emt 0:07:19]} 40. Qf6 {[%emt 0:01:53]} g5 {[%emt 0:01:38]} 41. Qxf4 {[%emt 0:31:37]} Bxb3 {[%emt 0:30:37]} 42. Rxb3 {[%emt 0:00:56]} Qg6 {[%emt 0:00:53]} 43. Qg4 {[%emt 0:00:35]} h5 {[%emt 0:00:40]} 44. Qxg5 {[%emt 0:00:54]} Qxg5 {[%emt 0:00:07]} 45. Rxg5+ {[%emt 0:00:14]} Kh8 {[%emt 0:00:11]} 46. Rh3 {[%emt 0:00:26]} f6 47. Rhxh5# {[%emt 2:50:09]} 1-0

[Event "DVM U12W 2021"]
[Site "Willingen"]
[Date "2022.08.14"]
[Round "4"]
[White "Schube, Theresa"]
[Black "Wagner, Cosima Thien-An"]
[Result "1/2-1/2"]
[ECO "C50"]
[WhiteElo "1162"]
[BlackElo "1301"]
[Annotator "NA RC"]
[PlyCount "86"]
[EventDate "2022.08.12"]
[EventType "team-tourn"]
[EventRounds "7"]
[EventCountry "GER"]
[SourceTitle "playchess.com"]
[Source "ChessBase"]
[SourceQuality "1"]
[TimeControl "40/5400+30:1800+30"]

1. e4 {[%emt 0:00:05]} e5 {[%emt 0:00:03]} 2. Nf3 {[%emt 0:00:15]} Nf6 {[%emt 0:00:14]} 3. Nc3 {[%emt 0:00:32]} Bc5 {[%emt 0:00:19]} 4. Bc4 {[%emt 0:00:33]} Nc6 {[%emt 0:01:49]} 5. d3 {[%emt 0:00:30]} h6 {[%emt 0:01:56]} 6. h3 {[%emt 0:02:10]} d6 {[%emt 0:01:34]} 7. Na4 {[%emt 0:01:43]} Bd4 {[%emt 0:04:28]} 8. c3 {[%emt 0:01:16]} Bb6 {[%emt 0:00:25]} 9. Nxb6 {[%emt 0:00:13]} axb6 {[%emt 0:00:04]} 10. O-O {[%emt 0:01:44]} Be6 {[%emt 0:02:14]} 11. Bb3 {[%emt 0:02:35]} O-O {[%emt 0:04:44]} 12. Re1 {[%emt 0:01:36]} Qd7 {[%emt 0:10:01]} 13. Bxe6 {[%emt 0:04:07]} fxe6 {[%emt 0:06:37]} 14. d4 {[%emt 0:01:25]} exd4 {[%emt 0:00:47]} 15. cxd4 {[%emt 0:00:44]} d5 {[%emt 0:04:09]} 16. exd5 {[%emt 0:04:00]} exd5 {[%emt 0:00:47]} 17. Be3 {[%emt 0:04:53]} Ne4 {[%emt 0:08:49]} 18. Nd2 {[%emt 0:02:24]} Nxd2 {[%emt 0:02:00]} 19. Qxd2 {[%emt 0:00:12]} Qf7 {[%emt 0:01:35]} 20. Re2 {[%emt 0:03:30]} Na5 {[%emt 0:02:33]} 21. b3 {[%emt 0:01:11]} Nxb3 {[%emt 0:00:30]} 22. Qb2 {[%emt 0:02:03]} Nxa1 {[%emt 0:01:28]} 23. Qxa1 {[%emt 0:00:09]} Ra7 {[%emt 0:04:56]} 24. Qc3 {[%emt 0:03:07]} Rfa8 {[%emt 0:02:41]} 25. Qb3 {[%emt 0:00:25]} Ra3 {[%emt 0:03:47]} 26. Qb1 {[%emt 0:00:25]} Qd7 {[%emt 0:00:45]} 27. Bc1 {[%emt 0:01:58]} R3a5 {[%emt 0:02:07]} 28. a3 {[%emt 0:06:58]} Qb5 {[%emt 0:02:41]} 29. Qc2 {[%emt 0:02:10]} Qc6 {[%emt 0:03:15]} 30. Qb1 {[%emt 0:02:41]} Rb5 {[%emt 0:01:13]} 31. Rb2 {[%emt 0:03:17]} Rxb2 {[%emt 0:00:23]} 32. Qxb2 {[%emt 0:00:45]} Qc4 {[%emt 0:01:37]} 33. Be3 {[%emt 0:01:45]} Ra5 {[%emt 0:04:08]} 34. Qb1 {[%emt 0:01:30]} Rxa3 {[%emt 0:04:03]} 35. Bxh6 {[%emt 0:01:45]} Qxd4 {[%emt 0:02:08]} 36. Qg6 {[%emt 0:03:38]} Qf6 {[%emt 0:03:49]} 37. Qe8+ {[%emt 0:01:05]} Qf8 {[%emt 0:01:56]} 38. Qe6+ {[%emt 0:01:04]} Kh7 {[%emt 0:03:52]} 39. Bxg7 {[%emt 0:01:24]} Kxg7 {[%emt 0:02:43]} 40. Qg4+ {[%emt 0:01:14]} Kh7 {[%emt 0:03:02]} 41. Qh5+ {[%emt 0:32:42]} Qh6 {[%emt 0:31:14]} 42. Qf7+ {[%emt 0:00:57]} Qg7 {[%emt 0:02:01]} 43. Qh5+ {[%emt 0:00:27]} Qh6 {[%emt 0:01:44]} 1/2-1/2